Cogmind - Beta 9.3 *** ADVENTURER MODE // 2020.01.01 @ 12:26:14 // Winter2019/RPGLIKE Player: Rev Result: Smashed by cave-in Performance ------------- Evolutions (6) 3000 Regions Visited (20) 4000 Robots Destroyed (280) 1400 Value Destroyed (12826) 12826 Prototype IDs (27) 540 Alien Tech Used (0) 0 Bonus (1805) 1805 TOTAL SCORE: 23571 Bonus ------- High Alert Combat Kills 838 Follower Combat Kills 375 Met Imprinter 300 Was Imprinted 300 Met R17 at Cetus 500 Friendly Fire -508 Cogmind --------- Core Integrity 0/900 Matter 265/300 Energy 885/900 System Corruption 0% Temperature Cool (26) Movement Treading (160) Location -4/Factory Parts ------- > --- POWER (3) -------- Quantum Reactor Quantum Reactor Quantum Reactor > --- PROPULSION (4) --- Centrium Heavy Treads Centrium Heavy Treads > --- UTILITY (9) ------ Advanced Heat Sink Enhanced Optical Array Long-range Sensor Array Advanced Signal Interpreter Long-range Terrain Scanner Improved Particle Charger Phase Shifter Centrium Medium Armor Plating Improved Hardlight Generator > --- WEAPON (5) ------- Wave Gun Phase Cannon Phase Cannon Phase Cannon Heavy Plasma Cannon > --- INVENTORY (5) ---- Zionite Light DM Reactor Improved Weapon Cycler Component Analysis Suite System Restoration Module Phasing AFG Peak State ------------ > --- POWER ------------ Quantum Reactor Quantum Reactor Quantum Reactor > --- PROPULSION ------- Centrium Heavy Treads Centrium Heavy Treads > --- UTILITY ---------- Enhanced Optical Array Long-range Sensor Array Advanced Signal Interpreter Long-range Terrain Scanner Improved Particle Charger Improved Weapon Cycler Phase Shifter Centrium Medium Armor Plating Improved Hardlight Generator > --- WEAPON ----------- Wave Gun Phase Cannon Phase Cannon Phase Cannon Heavy Plasma Cannon > --- INVENTORY -------- Zionite Light DM Reactor Advanced Heat Sink Component Analysis Suite System Restoration Module Phasing AFG [Rating: 137] Favorites ----------- Power Micro Fission Core Engine F-cell Engine Power Core Micro Fission Core Reactor Quantum Reactor Propulsion Armored Huge Wheel Treads Centrium Heavy Treads Leg Carbon-fiber Leg Wheel Armored Huge Wheel Utility Long-range Terrain Scanner Device Long-range Terrain Scanner Storage High-capacity Matter Pod Processor Enhanced Optical Array Protection Improved Medium Armor Plating Weapon Phase Cannon Energy Gun Beamcaster Energy Cannon Phase Cannon Ballistic Gun Assault Rifle Ballistic Cannon Light Cannon Build | -11 -10 -10 -10 -9 -8 -7 -7 -7 -7 -6 -6 -6 -6 -5 -5 -5 -5 -5 -5 -4 ------- Run | Scr Mat Min Exi Min Mat Fac Was Fac Sto Fac Low Low Zio Pro Fac Ext Cet Arc Hub Fac Slots Evolved 17 | 4 . 2 . . 3 1 . . 2 2 1 . . . 2 . . . . . Power 2 | . . . . . 1 . . . . . 1 . . . . . . . . . Propulsion 3 | 1 . . . . 1 1 . . . . . . . . . . . . . . Utility 8 | 2 . 2 . . 1 . . . 1 1 . . . . 1 . . . . . Weapon 4 | 1 . . . . . . . . 1 1 . . . . 1 . . . . . Parts Attached 115 | 5 16 3 . 1 19 3 2 5 8 11 3 . 9 . 11 4 8 . 1 6 Power 16 | 1 3 . . . 2 1 1 2 1 1 . . . . 1 . 3 . . . Engine 8 | 1 1 . . . 1 1 1 2 . 1 . . . . . . . . . . Core 5 | . 2 . . . 1 . . . 1 . . . . . 1 . . . . . Reactor 3 | . . . . . . . . . . . . . . . . . 3 . . . Propulsion 15 | 2 3 . . . 4 2 . . . . . . . . . 2 2 . . . Treads 4 | . . . . . . . . . . . . . . . . 2 2 . . . Leg 4 | . . . . . 4 . . . . . . . . . . . . . . . Wheel 7 | 2 3 . . . . 2 . . . . . . . . . . . . . . Hover . | . . . . . . . . . . . . . . . . . . . . . Flight . | . . . . . . . . . . . . . . . . . . . . . Utility 64 | . 5 2 . . 12 . 1 3 5 7 . . 9 . 9 1 3 . 1 6 Device 49 | . 2 1 . . 8 . . 2 5 6 . . 9 . 8 . 2 . 1 5 Storage 5 | . 2 1 . . 1 . . . . . . . . . 1 . . . . . Processor 6 | . 1 . . . 2 . . 1 . . . . . . . 1 . . . 1 Hackware . | . . . . . . . . . . . . . . . . . . . . . Protection 4 | . . . . . 1 . 1 . . 1 . . . . . . 1 . . . Artifact . | . . . . . . . . . . . . . . . . . . . . . Weapon 20 | 2 5 1 . 1 1 . . . 2 3 3 . . . 1 1 . . . . Energy Gun 8 | 1 . 1 . . 1 . . . 2 2 . . . . . 1 . . . . Energy Cannon 5 | . . . . . . . . . . 1 3 . . . 1 . . . . . Ballistic Gun 5 | 1 3 . . 1 . . . . . . . . . . . . . . . . Ballistic Cannon 2 | . 2 . . . . . . . . . . . . . . . . . . . Launcher . | . . . . . . . . . . . . . . . . . . . . . Special Weapon . | . . . . . . . . . . . . . . . . . . . . . Impact Weapon . | . . . . . . . . . . . . . . . . . . . . . Slashing Weapon . | . . . . . . . . . . . . . . . . . . . . . Piercing Weapon . | . . . . . . . . . . . . . . . . . . . . . Special Melee Weapon . | . . . . . . . . . . . . . . . . . . . . . Unidentified Prototypes 1 | . . . . . . . . . . . . . . . . . 1 . . . Parts Lost 1 | . . . . . . . 1 . . . . . . . . . . . . . Power 1 | . . . . . . . 1 . . . . . . . . . . . . . Propulsion . | . . . . . . . . . . . . . . . . . . . . . Utility . | . . . . . . . . . . . . . . . . . . . . . Weapon . | . . . . . . . . . . . . . . . . . . . . . Highest Loss Streak 1 | . . . . . . . 1 . . . . . . . . . . . . . Average Slot Usage (%) 88 | . 79 97 90 90 99 88 80 82 86 86 87 84 84 84 88 92 94 90 90 90 Engine 4 | . 3 . . . 5 11 10 11 11 5 5 5 5 5 4 4 . . . . Core 5 | . 8 10 10 10 7 2 . . . 5 5 5 5 5 7 9 . . . . Reactor 2 | . . . . . . . . . . . . . . . . . 12 14 14 14 Treads 1 | . . . . . . . . . . . . . . . . 5 8 9 9 9 Leg 1 | . . . . . 18 5 . . . . . . . . . . . . . . Wheel 10 | . 24 22 20 20 2 10 14 14 12 11 11 10 10 10 9 6 3 . . . Device 24 | . 7 19 20 20 24 21 21 21 24 25 27 26 26 26 27 32 28 28 28 28 Storage 1 | . 2 10 10 10 1 . . . . . . . . . . . . . . . Processor 10 | . 7 10 10 10 14 14 14 14 12 11 11 10 10 10 9 4 9 9 9 9 Protection 4 | . . . . . 4 7 6 7 6 5 5 5 5 5 4 4 4 4 4 4 Energy Gun 7 | . 7 7 10 10 13 14 14 14 16 16 9 . . . . 3 4 4 4 4 Energy Cannon 10 | . . . . . . . . . . 4 12 21 21 21 22 19 19 19 19 19 Ballistic Gun 1 | . 13 3 . 8 1 . . . . . . . . . . . . . . . Ballistic Cannon 1 | . 3 10 10 1 . . . . . . . . . . . . . . . . Naked Turns . | . . . . . . . . . . . . . . . . . . . . . Heaviest Build 123 | 7 14 19 19 19 40 45 45 47 53 61 73 73 73 73 91 88 122 122 123 123 Greatest Support 185 | 26 26 26 26 26 60 71 71 71 71 71 76 76 76 76 76 80 185 185 185 185 Greatest Overweight (x) 2 | . 1 . . . 2 . . . . . 1 . . . 1 1 1 . . . Average Overweight (x) . | . . . . . . . . . . . . . . . . 1 . . . . Largest Inventory Capacity 5 | 3 3 3 3 4 5 5 5 5 5 5 5 5 5 5 5 5 5 5 5 5 Average Capacity 4 | 3 3 3 3 3 4 5 5 5 5 5 5 5 5 5 5 5 5 5 5 5 Most Carried 5 | 2 3 3 3 3 5 5 5 5 5 5 5 5 5 5 5 5 5 5 5 5 Average Carried 4 | . 2 2 3 2 3 4 4 4 4 4 4 5 4 5 4 4 4 5 5 4 Final Capacity 5 | 3 3 3 3 4 5 5 5 5 5 5 5 5 5 5 5 5 5 5 5 5 Final Carried 5 | 2 3 3 3 2 5 5 5 5 4 5 5 5 5 5 4 5 5 5 5 5 Class Distribution -------------------- 34% | Messiah-Skirmisher 18% | Skirmisher 15% | Scavenger-Skirmisher 9% | Scavenger-Mutant 7% | Generator-Skirmisher 7% | Mutant 5% | Messiah-Tank Dominant Class ---------------- Mutant | -10/Materials Scavenger-Mutant | -10/Mines Scavenger-Mutant | -10/Exiles Scavenger-Mutant | -9/Mines Scavenger-Skirmisher | -8/Materials Skirmisher | -7/Factory Skirmisher | -7/Waste Skirmisher | -7/Factory Scavenger-Skirmisher | -7/Storage Skirmisher | -6/Factory Skirmisher | -6/Lower Caves Generator-Skirmisher | -6/Lower Caves Messiah-Skirmisher | -6/Zion Messiah-Skirmisher | -5/Proximity Caves Messiah-Skirmisher | -5/Factory Messiah-Tank | -5/Extension Messiah-Skirmisher | -5/Cetus Messiah-Skirmisher | -5/Archives Messiah-Skirmisher | -5/Hub_04(d) Messiah-Skirmisher | -4/Factory Resources | -11 -10 -10 -10 -9 -8 -7 -7 -7 -7 -6 -6 -6 -6 -5 -5 -5 -5 -5 -5 -4 ----------- Run | Scr Mat Min Exi Min Mat Fac Was Fac Sto Fac Low Low Zio Pro Fac Ext Cet Arc Hub Fac Matter Collected 2046 | 232 186 520 . 125 308 30 . 70 80 50 90 . 70 20 90 50 90 . . 35 Remotely 182 | . . . . . 182 . . . . . . . . . . . . . . . Salvage Created 11286 | . 226 297 . 142 1220 241 . 352 790 281 1151 317 . 182 1543 1535 1229 373 435 972 Parts 641 | . 20 32 . 12 72 16 . 10 80 20 48 15 . 10 96 75 50 7 35 43 Haulers Intercepted 2 | . . . . . 2 . . . . . . . . . . . . . . . Recyclers Shooed 2 | . 1 . . . . . . . . . . . . . . 1 . . . . Parts Field Recycled . | . . . . . . . . . . . . . . . . . . . . . Retrieved Matter . | . . . . . . . . . . . . . . . . . . . . . Parts Self-Destructed 75 | . . . . . . . . . . . 50 15 . 10 . . . . . . Prevented . | . . . . . . . . . . . . . . . . . . . . . Kills | -11 -10 -10 -10 -9 -8 -7 -7 -7 -7 -6 -6 -6 -6 -5 -5 -5 -5 -5 -5 -4 ------- Run | Scr Mat Min Exi Min Mat Fac Was Fac Sto Fac Low Low Zio Pro Fac Ext Cet Arc Hub Fac Combat Hostiles Destroyed 238 | . 7 17 . 5 24 8 . 4 22 6 29 8 . 2 33 17 24 4 11 17 Melee 1 | . . . . . . . . . . . . . . . . . . . . 1 Guns 100 | . 7 7 . 5 23 7 . 3 19 6 13 . . . . 1 5 . 1 3 Cannons 114 | . . 10 . . . . . . . . 10 8 . 2 27 16 16 3 10 12 AOE 3 | . . . . . . . . . . . . . . . 3 . . . . . Classes Destroyed 18 | . 3 1 . 1 5 1 . . 1 . . 1 . 1 1 1 . . . 2 Worker 10 | . 1 . . . 2 . . . 4 . . . . . 2 . . . . 1 Builder 4 | . . . . . 1 . . . . . . . . . 3 . . . . . Tunneler 1 | . . . . . 1 . . . . . . . . . . . . . . . Hauler 2 | . . . . . 2 . . . . . . . . . . . . . . . Recycler 3 | . . . . . . . . . . . . . . . . 3 . . . . Operator 3 | . . . . . . . . . 1 . . . . . . 1 . . . 1 Watcher 18 | . 2 . . . 3 . . . 1 1 . . . . 4 3 2 . 2 . Swarmer 49 | . . 11 . 3 3 . . . 4 2 11 4 . . 4 . 5 . 1 1 Saboteur 1 | . . . . . . . . . . . . . . . . . . . . 1 Grunt 81 | . 7 6 . 1 11 4 . . 3 1 8 2 . . 14 6 8 . 5 5 Brawler 5 | . . . . 1 . . . . . . 2 . . . 1 . . . . 1 Duelist 7 | . . . . . . . . . . . . 1 . . 3 . 1 . . 2 Protector 1 | . . . . . . . . . . . . . . . 1 . . . . . Sentry 47 | . . . . . 9 2 . 3 12 2 3 . . . 3 4 . 4 1 4 Hunter 19 | . . . . . 1 1 . . . . 4 1 . . 3 3 2 . 2 2 Programmer 14 | . . . . . . 1 . 1 3 1 1 . . 1 4 . . . 2 . Behemoth 4 | . . . . . . . . . . . . . . 1 . 2 . . . 1 Cetus Guard 8 | . . . . . . . . . . . . . . . . . 8 . . . Z-Light 1 | . . . . . . . . . . . . . . . . . . . . 1 Thug 1 | . . . . . . . . . . . . . . . . 1 . . . . Butcher 1 | . . . . . . . . . . . . . . . . 1 . . . . Best Kill Streak 18 | . 3 6 . 5 6 4 . 1 7 3 10 4 . 2 18 6 7 4 6 5 Combat Bots Only 10 | . 3 6 . 5 5 4 . 1 6 3 10 4 . 2 9 5 7 4 6 5 Max Kills in Single Turn 4 | . 1 2 . 1 2 1 . 1 2 1 1 1 . 1 4 3 1 1 1 2 Gunslinging 1 | . . . . . . . . . 1 . . . . . . . . . . . Exploded 3 | . . . . . . . . . . . . . . . 3 . . . . . Melee 1 | . . . . . . . . . . . . . . . . . . . . 1 Uniques/NPCs Destroyed . | . . . . . . . . . . . . . . . . . . . . . Combat | -11 -10 -10 -10 -9 -8 -7 -7 -7 -7 -6 -6 -6 -6 -5 -5 -5 -5 -5 -5 -4 -------- Run | Scr Mat Min Exi Min Mat Fac Was Fac Sto Fac Low Low Zio Pro Fac Ext Cet Arc Hub Fac Damage Taken 9135 | . 349 380 . 29 880 430 28 173 679 102 1084 135 . 73 1009 521 1205 162 335 1561 Core 7104 | . 286 303 . 27 705 336 22 124 480 77 851 109 . 57 783 406 934 128 258 1218 Absorbed by Shields 2585 | . . . . . 105 180 3 132 459 58 500 60 . 16 268 156 248 44 92 264 Redirected to Core 6251 | . 195 230 . 6 569 231 22 94 409 71 728 82 . 57 736 392 885 110 246 1188 Core Remaining (%) 96 | 100 . . . 100 85 . . . 100 . . . . 93 . . . . 98 . Volleys Fired 621 | . 40 49 . 6 85 39 9 20 72 12 53 12 . 4 70 35 47 9 21 38 Largest 5 | . 2 2 . 2 2 2 2 2 3 4 4 4 . 4 5 5 5 5 5 5 Hottest 450 | . 70 110 . 98 144 144 144 144 224 309 360 360 . 360 450 450 441 441 441 441 Shots Fired 1930 | . 78 97 . 12 153 62 18 38 181 46 178 48 . 16 280 168 223 40 105 187 Gun 848 | . 72 48 . 12 153 62 18 38 181 36 119 . . . . 13 36 4 21 35 Cannon 1082 | . 6 49 . . . . . . . 10 59 48 . 16 280 155 187 36 84 152 Launcher . | . . . . . . . . . . . . . . . . . . . . . Special . | . . . . . . . . . . . . . . . . . . . . . Kinetic 144 | . 46 70 . 6 22 . . . . . . . . . . . . . . . Thermal 1770 | . 32 27 . 6 131 62 18 38 165 46 178 48 . 16 280 168 223 40 105 187 Explosive . | . . . . . . . . . . . . . . . . . . . . . Electromagnetic 16 | . . . . . . . . . 16 . . . . . . . . . . . Robot Hit Streak 55 | . 24 11 . 4 17 16 17 14 48 19 55 18 . 32 33 29 42 41 51 47 Robot Miss Streak 4 | . 3 4 . 1 2 1 2 2 2 . 3 1 . . 2 2 2 . 1 1 Penetration Max . | . . . . . . . . . . . . . . . . . . . . . Secondary Targets 11 | . 1 . . 2 3 2 . . 3 . . . . . . . . . . . Max Gunslinging Chain 1 | . 1 . . 1 1 1 . . 1 . . . . . . . . . . . Shots Hit Robots 1346 | . 63 63 . 7 116 54 8 30 118 19 130 29 . 14 198 94 160 37 70 136 Core Hits 514 | . 21 25 . 5 55 18 2 9 57 12 42 11 . 4 77 46 57 12 23 38 Critical Hits 14 | . . 1 . . . . . . . . . . . . 5 3 4 . 1 . Critical Kills 4 | . . 1 . . . . . . . . . . . . . . 2 . 1 . Critical Parts Destroyed 9 | . . . . . . . . . . . . . . . 4 3 2 . . . Melee Attacks . | . . . . . . . . . . . . . . . . . . . . . Impact . | . . . . . . . . . . . . . . . . . . . . . Slashing . | . . . . . . . . . . . . . . . . . . . . . Piercing . | . . . . . . . . . . . . . . . . . . . . . Sneak Attacks . | . . . . . . . . . . . . . . . . . . . . . Combat Hostiles . | . . . . . . . . . . . . . . . . . . . . . Follow-up Attacks . | . . . . . . . . . . . . . . . . . . . . . Damage Inflicted 37630 | . 673 1152 . 103 2184 1106 160 556 2554 462 3579 942 . 508 7287 3335 5454 1264 1947 4364 Guns 13260 | . 594 596 . 103 2184 1106 160 556 2554 462 2368 . . . . 298 871 108 509 791 Cannons 23523 | . 71 556 . . . . . . . . 1211 942 . 508 6448 3037 4583 1156 1438 3573 Explosions 839 | . . . . . . . . . . . . . . . 839 . . . . . Melee . | . . . . . . . . . . . . . . . . . . . . . Ramming 8 | . 8 . . . . . . . . . . . . . . . . . . . Kinetic 1381 | . 378 769 . 17 217 . . . . . . . . . . . . . . . Thermal 35208 | . 287 383 . 86 1967 1106 160 556 2293 462 3579 942 . 508 6515 3335 5454 1264 1947 4364 Explosive 772 | . . . . . . . . . . . . . . . 772 . . . . . Electromagnetic 261 | . . . . . . . . . 261 . . . . . . . . . . . Impact . | . . . . . . . . . . . . . . . . . . . . . Slashing . | . . . . . . . . . . . . . . . . . . . . . Piercing . | . . . . . . . . . . . . . . . . . . . . . Highest Corruption 2 | . 1 1 1 1 1 . . . . . . . . . 1 . . . 2 . Average Corruption 1 | . 1 1 1 1 1 . . . . . . . . . 1 . . . 1 . Corruption Purged 1 | . . . . . . . . . . . . . . . 1 . . . . . Effects 22 | . 2 6 1 2 7 . . . . . . . . . 1 . . . 3 . Message Errors 9 | . 2 3 1 . 2 . . . . . . . . . 1 . . . . . Energy Discharges 5 | . . 1 . 2 2 . . . . . . . . . . . . . . . Data Loss (minor) 5 | . . 1 . . 2 . . . . . . . . . . . . . 2 . Targeting Errors 1 | . . . . . . . . . . . . . . . . . . . 1 . Weapon Failures 2 | . . 1 . . 1 . . . . . . . . . . . . . . . Overload Shots . | . . . . . . . . . . . . . . . . . . . . . Overflow Damage 867 | . 4 33 . . . . . . . . 28 28 . . 440 36 148 43 28 79 Projectiles 693 | . 4 33 . . . . . . . . 28 28 . . 266 36 148 43 28 79 Explosions 174 | . . . . . . . . . . . . . . . 174 . . . . . Melee . | . . . . . . . . . . . . . . . . . . . . . Knockbacks 6 | . 1 5 . . . . . . . . . . . . . . . . . . Impact . | . . . . . . . . . . . . . . . . . . . . . Kinetic 6 | . 1 5 . . . . . . . . . . . . . . . . . . Secondary . | . . . . . . . . . . . . . . . . . . . . . Self-Inflicted Damage 210 | . 4 . . . 87 . . . . . . . . . 64 . . . . 55 Shots 4 | . . . . . 2 . . . . . . . . . 1 . . . . 1 Rammed 1 | . 1 . . . . . . . . . . . . . . . . . . . Targets Rammed 1 | . 1 . . . . . . . . . . . . . . . . . . . Kicked . | . . . . . . . . . . . . . . . . . . . . . Crushed . | . . . . . . . . . . . . . . . . . . . . . Highest Temperature 547 | . 18 . . 5 464 81 . 37 116 304 396 408 . 418 494 450 547 207 492 505 Average Temperature 138 | . 5 . . 5 141 34 . 21 34 115 153 181 . 208 153 128 205 105 207 177 Received Heat Transfer 2142 | . 255 120 . 12 342 96 . 64 216 24 86 24 . 10 269 151 154 14 68 237 Effects 49 | . . . . . 9 . . . . . 6 . . 1 8 1 13 . 8 3 Shutdowns 18 | . . . . . 3 . . . . . 1 . . . 2 . 6 . 3 3 Energy Bleed 4 | . . . . . 1 . . . . . 1 . . . 1 . 1 . . . Interference 17 | . . . . . 4 . . . . . 4 . . . 4 . 2 . 3 . Matter Decay 1 | . . . . . . . . . . . . . . . . . 1 . . . Short Circuit 2 | . . . . . . . . . . . . . . . 1 1 . . . . Damage (minor) 5 | . . . . . 1 . . . . . . . . 1 . . 3 . . . Damage (major) 2 | . . . . . . . . . . . . . . . . . . . 2 . Siege Activations . | . . . . . . . . . . . . . . . . . . . . . Robots Corrupted 1 | . . . . . . . . . 1 . . . . . . . . . . . Combat Hostiles 1 | . . . . . . . . . 1 . . . . . . . . . . . Parts Fried . | . . . . . . . . . . . . . . . . . . . . . Impact Corruptions . | . . . . . . . . . . . . . . . . . . . . . Robots Melted 19 | . . . . . 1 1 . 1 2 . 6 . . . 3 . 3 1 . 1 Combat Hostiles 19 | . . . . . 1 1 . 1 2 . 6 . . . 3 . 3 1 . 1 Parts Melted 131 | . 1 . . . 8 4 . 5 12 4 21 1 . 4 26 11 13 4 5 12 Heat Transferred 46670 | . 851 666 . 148 3626 1961 296 999 3847 807 6056 1064 . 520 7165 3810 6369 1460 2211 4814 Parts Sabotaged 1 | . . . . . . . . . . . . . . . . . . . . 1 Parts Stolen . | . . . . . . . . . . . . . . . . . . . . . Parts Stripped . | . . . . . . . . . . . . . . . . . . . . . Power Chain Reactions . | . . . . . . . . . . . . . . . . . . . . . Missiles Intercepted . | . . . . . . . . . . . . . . . . . . . . . Alert | -11 -10 -10 -10 -9 -8 -7 -7 -7 -7 -6 -6 -6 -6 -5 -5 -5 -5 -5 -5 -4 ------- Run | Scr Mat Min Exi Min Mat Fac Was Fac Sto Fac Low Low Zio Pro Fac Ext Cet Arc Hub Fac Peak Influence 808 | . 192 262 . 144 425 324 13 129 383 139 . . . . 808 584 603 277 415 567 Average Influence 219 | . 40 163 . 6 247 148 8 43 243 33 . . . . 391 472 394 214 193 360 Maximum Alert Level 3 | . . 1 . . 2 1 . . 1 . . . . . 3 2 2 1 2 2 Low Security (%) 50 | 100 100 66 . 100 31 82 100 100 30 100 . . . . 19 . 2 40 54 7 Level 1 31 | . . 33 . . 65 17 . . 69 . . . . . 35 19 46 59 44 55 Level 2 17 | . . . . . 2 . . . . . . . . . 37 80 51 . 1 36 Level 3 . | . . . . . . . . . . . . . . . 7 . . . . . Level 4 . | . . . . . . . . . . . . . . . . . . . . . Level 5 . | . . . . . . . . . . . . . . . . . . . . . High Security . | . . . . . . . . . . . . . . . . . . . . . Max Security . | . . . . . . . . . . . . . . . . . . . . . Squads Dispatched 34 | . 2 . . . 2 1 . 1 8 2 . . . . 7 . . . 6 5 Investigation 7 | . 2 . . . . . . . 2 1 . . . . . . . . 1 1 Extermination 7 | . . . . . . 1 . 1 1 1 . . . . 1 . . . 1 1 Reinforcement 6 | . . . . . 2 . . . 1 . . . . . 2 . . . 1 . Assault 6 | . . . . . . . . . . . . . . . 3 . . . . 3 Garrison 8 | . . . . . . . . . 4 . . . . . 1 . . . 3 . Intercept . | . . . . . . . . . . . . . . . . . . . . . Construction Impeded 1 | . . . . . . . . . . . . . . . 1 . . . . . Haulers Reinforced 2 | . . . . . . . . . . . . . . . 1 . . . 1 . Stealth | -11 -10 -10 -10 -9 -8 -7 -7 -7 -7 -6 -6 -6 -6 -5 -5 -5 -5 -5 -5 -4 --------- Run | Scr Mat Min Exi Min Mat Fac Was Fac Sto Fac Low Low Zio Pro Fac Ext Cet Arc Hub Fac Distress Signals 7 | . . . . . 1 . . . 2 1 . . . . . . . . 1 2 Communications Jammed . | . . . . . . . . . . . . . . . . . . . . . Distress Signals . | . . . . . . . . . . . . . . . . . . . . . Times Spotted 310 | . 16 17 . 5 34 8 3 8 32 7 30 7 . 1 43 19 27 5 12 36 Peak Tracking Total 11 | . 3 4 . 3 6 5 3 1 5 3 10 3 . 1 7 3 7 1 4 11 Tactical Retreats 6 | . . 1 . . . . 1 . 1 . . . . . 2 . . . . 1 Traps | -11 -10 -10 -10 -9 -8 -7 -7 -7 -7 -6 -6 -6 -6 -5 -5 -5 -5 -5 -5 -4 ------- Run | Scr Mat Min Exi Min Mat Fac Was Fac Sto Fac Low Low Zio Pro Fac Ext Cet Arc Hub Fac Traps Triggered 7 | . 3 . . . 1 1 . . . 1 . . . . . 1 . . . . Indirectly . | . . . . . . . . . . . . . . . . . . . . . Trap Hack Attempts . | . . . . . . . . . . . . . . . . . . . . . Triggered . | . . . . . . . . . . . . . . . . . . . . . Disarmed . | . . . . . . . . . . . . . . . . . . . . . Reprogrammed 1 | . . . . . 1 . . . . . . . . . . . . . . . Reused . | . . . . . . . . . . . . . . . . . . . . . Traps Extracted . | . . . . . . . . . . . . . . . . . . . . . Installed . | . . . . . . . . . . . . . . . . . . . . . Triggered . | . . . . . . . . . . . . . . . . . . . . . Machines | -11 -10 -10 -10 -9 -8 -7 -7 -7 -7 -6 -6 -6 -6 -5 -5 -5 -5 -5 -5 -4 ---------- Run | Scr Mat Min Exi Min Mat Fac Was Fac Sto Fac Low Low Zio Pro Fac Ext Cet Arc Hub Fac Machines Disabled 33 | . . . . 1 3 2 . 1 2 . 4 . . . 5 1 2 . 2 10 Max in Single Turn 4 | . . . . 1 2 1 . 1 1 . 1 . . . 4 1 1 . 1 3 Garrison Access 5 | . . . . . 1 . . 1 . . . . . . 2 . . . . 1 Machines Sabotaged . | . . . . . . . . . . . . . . . . . . . . . Garrisons Compromised . | . . . . . . . . . . . . . . . . . . . . . Overloaded Fab Kills . | . . . . . . . . . . . . . . . . . . . . . Fab Network Shutdowns . | . . . . . . . . . . . . . . . . . . . . . Hacking | -11 -10 -10 -10 -9 -8 -7 -7 -7 -7 -6 -6 -6 -6 -5 -5 -5 -5 -5 -5 -4 --------- Run | Scr Mat Min Exi Min Mat Fac Was Fac Sto Fac Low Low Zio Pro Fac Ext Cet Arc Hub Fac Machines Accessed 51 | . 7 1 4 1 8 3 . 2 9 4 2 3 1 1 2 . . 1 1 1 Terminals 27 | . 5 1 . 1 5 3 . 1 7 2 1 . . 1 . . . . . . Fabricators 2 | . . . . . . . . . . 2 . . . . . . . . . . Repair Stations 1 | . 1 . . . . . . . . . . . . . . . . . . . Recycling Units 2 | . 1 . . . . . . . 1 . . . . . . . . . . . Scanalyzers 2 | . . . . . 2 . . . . . . . . . . . . . . . Garrison Access 7 | . . . . . 1 . . 1 1 . . . . . 2 . . . 1 1 Total Hacks 131 | . 20 2 4 1 18 9 . 3 16 6 6 5 3 2 6 . . 25 2 3 Successful 106 | . 15 2 4 1 18 8 . 2 9 3 6 5 3 2 2 . . 25 . 1 Failed 25 | . 5 . . . . 1 . 1 7 3 . . . . 4 . . . 2 2 Catastrophic 2 | . . . . . . . . . 1 1 . . . . . . . . . . Database Lockouts . | . . . . . . . . . . . . . . . . . . . . . Manual 27 | . . . . . . . . . . . . . 1 . 5 9 1 . 6 5 Terminals 59 | . 15 2 . 1 9 9 . 2 11 3 5 . . 2 . . . . . . Fabricators 3 | . . . . . . . . . . 3 . . . . . . . . . . Repair Stations 4 | . 4 . . . . . . . . . . . . . . . . . . . Recycling Units 2 | . 1 . . . . . . . 1 . . . . . . . . . . . Scanalyzers 8 | . . . . . 8 . . . . . . . . . . . . . . . Garrison Access 17 | . . . . . 1 . . 1 4 . . . . . 6 . . . 2 3 Terminal Hacks 86 | . 10 2 4 1 9 8 . 1 8 2 6 5 3 2 . . . 25 . . Record 61 | . 8 2 4 1 4 5 . 1 1 . 5 3 . 2 . . . 25 . . Part Schematic 3 | . . . . . . . . . . . . . 3 . . . . . . . Robot Analysis 1 | . . . . . 1 . . . . . . . . . . . . . . . Open Door 8 | . . . . . . . . . 5 . 1 2 . . . . . . . . Branch Access Points 1 | . . . . . 1 . . . . . . . . . . . . . . . Alert Level 1 | . 1 . . . . . . . . . . . . . . . . . . . Unreport Threat 5 | . 1 . . . . 1 . . 1 2 . . . . . . . . . . Reprogram Traps 1 | . . . . . 1 . . . . . . . . . . . . . . . Maintenance Status 2 | . . . . . 1 . . . 1 . . . . . . . . . . . Hauler Manifests 2 | . . . . . 1 1 . . . . . . . . . . . . . . Zone Layout 1 | . . . . . . 1 . . . . . . . . . . . . . . Fabricator Hacks 1 | . . . . . . . . . . 1 . . . . . . . . . . Network Status 1 | . . . . . . . . . . 1 . . . . . . . . . . Repair Station Hacks 4 | . 4 . . . . . . . . . . . . . . . . . . . Scan Component 2 | . 2 . . . . . . . . . . . . . . . . . . . Repair 2 | . 2 . . . . . . . . . . . . . . . . . . . Recycling Unit Hacks 2 | . 1 . . . . . . . 1 . . . . . . . . . . . Report Inventory 2 | . 1 . . . . . . . 1 . . . . . . . . . . . Scanalyzer 8 | . . . . . 8 . . . . . . . . . . . . . . . Insert Component 4 | . . . . . 4 . . . . . . . . . . . . . . . Analyze 4 | . . . . . 4 . . . . . . . . . . . . . . . Garrison Access Hacks 5 | . . . . . 1 . . 1 . . . . . . 2 . . . . 1 Seal Access 5 | . . . . . 1 . . 1 . . . . . . 2 . . . . 1 Unauthorized Hacks . | . . . . . . . . . . . . . . . . . . . . . Terminals . | . . . . . . . . . . . . . . . . . . . . . Fabricators . | . . . . . . . . . . . . . . . . . . . . . Repair Stations . | . . . . . . . . . . . . . . . . . . . . . Recycling Units . | . . . . . . . . . . . . . . . . . . . . . Scanalyzers . | . . . . . . . . . . . . . . . . . . . . . Garrison Access . | . . . . . . . . . . . . . . . . . . . . . Data Cores Recovered 2 | . . . . . . . . . . . . . . . . 1 . . . 1 Used . | . . . . . . . . . . . . . . . . . . . . . Hacking Detections 26 | . 7 1 . . 3 2 . . 5 4 . . . . 2 . . . 1 1 Full Trace Events 5 | . 1 . . . . . . . 2 1 . . . . . . . . 1 . Feedback Events 1 | . 1 . . . . . . . . . . . . . . . . . . . Corruption 1 | . 1 . . . . . . . . . . . . . . . . . . . Feedback Blocked . | . . . . . . . . . . . . . . . . . . . . . Robot Schematics Acquired . | . . . . . . . . . . . . . . . . . . . . . Robots Built . | . . . . . . . . . . . . . . . . . . . . . Matter . | . . . . . . . . . . . . . . . . . . . . . Time . | . . . . . . . . . . . . . . . . . . . . . Total Robot Build Rating . | . . . . . . . . . . . . . . . . . . . . . Part Schematics Acquired 18 | . . . . . 4 . . . . . . . 3 . . . . . 11 . Parts Built . | . . . . . . . . . . . . . . . . . . . . . Matter . | . . . . . . . . . . . . . . . . . . . . . Time . | . . . . . . . . . . . . . . . . . . . . . Total Part Build Rating . | . . . . . . . . . . . . . . . . . . . . . Parts Repaired 2 | . 2 . . . . . . . . . . . . . . . . . . . Time 52 | . 52 . . . . . . . . . . . . . . . . . . . Parts Recycled . | . . . . . . . . . . . . . . . . . . . . . Recycled Matter . | . . . . . . . . . . . . . . . . . . . . . Retrieved Matter . | . . . . . . . . . . . . . . . . . . . . . Retrieved Components . | . . . . . . . . . . . . . . . . . . . . . Parts Scanalyzed 4 | . . . . . 4 . . . . . . . . . . . . . . . Part Schematics Acquired 4 | . . . . . 4 . . . . . . . . . . . . . . . Parts Damaged 1 | . . . . . 1 . . . . . . . . . . . . . . . Bothacking | -11 -10 -10 -10 -9 -8 -7 -7 -7 -7 -6 -6 -6 -6 -5 -5 -5 -5 -5 -5 -4 ------------ Run | Scr Mat Min Exi Min Mat Fac Was Fac Sto Fac Low Low Zio Pro Fac Ext Cet Arc Hub Fac Used RIF Installer . | . . . . . . . . . . . . . . . . . . . . . Robots Hacked . | . . . . . . . . . . . . . . . . . . . . . Non-combat . | . . . . . . . . . . . . . . . . . . . . . Combat . | . . . . . . . . . . . . . . . . . . . . . Robot Hacks Applied . | . . . . . . . . . . . . . . . . . . . . . Relay Couplers Released 2 | . . . . . . . . . 2 . . . . . . . . . . . Programmers 2 | . . . . . . . . . 2 . . . . . . . . . . . Robots Rewired . | . . . . . . . . . . . . . . . . . . . . . Allies Hacked . | . . . . . . . . . . . . . . . . . . . . . Hacks Repelled . | . . . . . . . . . . . . . . . . . . . . . Allies | -11 -10 -10 -10 -9 -8 -7 -7 -7 -7 -6 -6 -6 -6 -5 -5 -5 -5 -5 -5 -4 -------- Run | Scr Mat Min Exi Min Mat Fac Was Fac Sto Fac Low Low Zio Pro Fac Ext Cet Arc Hub Fac Total Allies 17 | . . . . . . . . . 10 . . . 4 . . . . . . 3 Largest Group 10 | . . . . . . . . . 10 . . . 4 4 4 . . . . 3 Highest-Rated Group 288 | . . . . . . . . . 173 . . . 145 145 145 . . . . 288 Highest-Rated Ally 96 | . . . . . . . . . 29 . . . 37 37 37 . . . . 96 Zionite Dispatches 1 | . . . . . . . . . . . . . . . . . . . . 1 Light 1 | . . . . . . . . . . . . . . . . . . . . 1 Total Orders . | . . . . . . . . . . . . . . . . . . . . . Ally Attacks 105 | . . . . . . . . . 75 . . . . . 7 . . . . 23 Total Damage 1873 | . . . . . . . . . 1008 . . . . . 103 . . . . 762 Kills 13 | . . . . . . . . . 5 . . . . . 1 . . . . 7 Allies Corrupted . | . . . . . . . . . . . . . . . . . . . . . Allies Melted . | . . . . . . . . . . . . . . . . . . . . . Intel | -11 -10 -10 -10 -9 -8 -7 -7 -7 -7 -6 -6 -6 -6 -5 -5 -5 -5 -5 -5 -4 ------- Run | Scr Mat Min Exi Min Mat Fac Was Fac Sto Fac Low Low Zio Pro Fac Ext Cet Arc Hub Fac Robot Analysis Total 1 | . . . . . 1 . . . . . . . . . . . . . . . Derelict Logs Recovered 8 | . . 1 . 1 . . . . . . 2 1 1 2 . . . . . . Drone Launches . | . . . . . . . . . . . . . . . . . . . . . Drone Recoveries . | . . . . . . . . . . . . . . . . . . . . . Zionite Intel Received 5 | . . . . . . . . . . . . . . . 1 2 . . 2 . Branch Access 2 | . . . . . . . . . . . . . . . . 1 . . 1 . Component Stockpiles 1 | . . . . . . . . . . . . . . . . 1 . . . . Prototype Schematics 1 | . . . . . . . . . . . . . . . . . . . 1 . Depthwide Sectors/0 1 | . . . . . . . . . . . . . . . 1 . . . . . Exploration | -11 -10 -10 -10 -9 -8 -7 -7 -7 -7 -6 -6 -6 -6 -5 -5 -5 -5 -5 -5 -4 ------------- Run | Scr Mat Min Exi Min Mat Fac Was Fac Sto Fac Low Low Zio Pro Fac Ext Cet Arc Hub Fac Turns Passed 16998 | 45 989 809 449 566 1348 656 163 901 948 891 1101 703 1875 953 913 1107 807 272 580 922 Spaces Moved 10683 | 42 834 611 499 574 615 485 127 549 373 545 802 531 1378 695 386 619 295 98 205 420 Core 1 | 1 . . . . . . . . . . . . . . . . . . . . Treads 1350 | . . . . . . . . . . . . . . . . 332 295 98 205 420 Legs 620 | . . . . . 493 127 . . . . . . . . . . . . . . Wheels 8712 | 41 834 611 499 574 122 358 127 549 373 545 802 531 1378 695 386 287 . . . . Hover . | . . . . . . . . . . . . . . . . . . . . . Flight . | . . . . . . . . . . . . . . . . . . . . . Fastest Speed 50 | 50 90 90 90 90 90 100 100 100 100 100 100 100 100 100 100 110 160 160 160 160 Average Speed 108 | 86 90 90 90 90 115 105 100 100 100 100 105 100 100 100 106 147 176 160 160 160 Slowest Speed 180 | 90 90 90 90 90 180 120 100 100 100 100 110 100 100 100 110 180 180 160 160 160 Overloaded Moves . | . . . . . . . . . . . . . . . . . . . . . Propulsion Burnouts . | . . . . . . . . . . . . . . . . . . . . . Robots Hopped . | . . . . . . . . . . . . . . . . . . . . . Cave-ins Triggered 1 | . . . . . . . . . . . . . . . . . . . . 1 Exploration Rate (%) 62 | 5 99 99 93 95 68 15 81 19 65 20 91 62 93 96 16 76 78 90 26 15 Regions Visited 20 Branch Regions 12 Pre-discovered Areas 16 | . . 1 . 1 . . . . . . 1 . 2 1 10 . . . . . Known Exits Taken 17 | . 1 1 1 1 1 . . 1 1 1 1 1 1 1 1 1 1 1 1 . Unknown Exits Taken 1 | 1 . . . . . . . . . . . . . . . . . . . . Scrap Searched 17 | . . 1 . 2 . . . . . . 4 3 5 2 . . . . . . Spaces Dug 27 | . . . . . . . . . 3 4 . . . . 16 . . . 2 2 Terrain Destroyed 304 | . . . . . 42 . . . 10 10 19 14 . 2 105 38 16 1 29 18 Melee . | . . . . . . . . . . . . . . . . . . . . . Projectile 213 | . . . . . . . . . 10 10 19 14 . 2 56 38 16 1 29 18 AOE 91 | . . . . . 42 . . . . . . . . . 49 . . . . . Actions | -11 -10 -10 -10 -9 -8 -7 -7 -7 -7 -6 -6 -6 -6 -5 -5 -5 -5 -5 -5 -4 --------- Run | Scr Mat Min Exi Min Mat Fac Was Fac Sto Fac Low Low Zio Pro Fac Ext Cet Arc Hub Fac Total 14932 | 48 989 772 498 612 1104 570 144 862 788 864 968 679 1875 945 755 746 497 197 419 600 Wait 2935 | . 81 77 . 26 320 7 5 283 275 279 50 128 469 247 224 50 91 80 147 96 Move 10664 | 41 833 610 498 573 614 485 126 548 372 544 801 530 1377 694 385 618 294 97 204 420 Hop . | . . . . . . . . . . . . . . . . . . . . . Pick Up 55 | 2 2 3 . . 13 1 1 3 . 5 2 . 10 . 4 2 3 . . 4 Fast Attach 47 | 5 10 1 . 1 4 3 2 1 3 4 3 . . . 1 3 5 . . 1 Attach 8 | . . . . . 3 . . 1 1 1 . . . . 2 . . . . . Detach . | . . . . . . . . . . . . . . . . . . . . . Swap 60 | . 6 2 . . 12 . . 3 4 6 . . 9 . 8 1 3 . 1 5 Drop 77 | . 4 4 . 2 13 5 1 3 2 8 5 . 10 . 3 3 9 . 1 4 Fire 621 | . 40 49 . 6 85 39 9 20 72 12 53 12 . 4 70 35 47 9 21 38 Melee . | . . . . . . . . . . . . . . . . . . . . . Ram 1 | . 1 . . . . . . . . . . . . . . . . . . . Kick . | . . . . . . . . . . . . . . . . . . . . . Crush . | . . . . . . . . . . . . . . . . . . . . . Escape Stasis 8 | . . . . . . . . . . . . . . . . 8 . . . . Rewire . | . . . . . . . . . . . . . . . . . . . . . Trap . | . . . . . . . . . . . . . . . . . . . . . Miscellaneous 456 | . 12 26 . 4 40 30 . . 59 5 54 9 . . 58 26 45 11 45 32 Route ------- -11/Scrapyard -10/Materials (discovered 4 exits: *Mat x3 / *Min) -10/Mines (discovered 3 exits: *Mat x2 / *Exi) -10/Exiles (discovered 2 exits: *Min x2) -9/Mines (discovered 2 exits: *Mat x2) -8/Materials (discovered 3 exits: *Fac x3) -7/Factory (discovered 2 exits: *Fac / *Low) -7/Waste -7/Factory -7/Storage -6/Factory (discovered 3 exits: *Fac x2 / *Low) -6/Lower Caves -6/Lower Caves (discovered 2 exits: *Fac / *Zio) -6/Zion (discovered 2 exits: [Dee] / *Pro) -5/Proximity Caves -5/Factory (discovered 3 exits: Upp / *Ext x2) -5/Extension (discovered 3 exits: *Fac x2 / *Cet) -5/Cetus (discovered 3 exits: *Fac x2 / *Arc) -5/Archives (discovered 3 exits: *Fac / *Hub x2) -5/Hub_04(d) (discovered 2 exits: *Fac x2) -4/Factory History --------- Turn | Location | Event 1 | -11/Scrapyard | Upgraded with Propulsion slot (x1) 1 | -11/Scrapyard | Upgraded with Utility slot (x2) 1 | -11/Scrapyard | Upgraded with Weapon slot (x1) 26 | -11/Scrapyard | Discovered new exit (range 16) 46 | -11/Scrapyard | Entered Materials 129 | -10/Materials | Discovered new exit (range 8) 269 | -10/Materials | Repaired Wheel 296 | -10/Materials | Repaired Com. Wheel 317 | -10/Materials | Build established: Mutant 505 | -10/Materials | Discovered new exit (range 7) 511 | -10/Materials | Identified exit to Materials 745 | -10/Materials | Discovered exit to Materials (range 5) 975 | -10/Materials | Discovered exit to Materials (range 4) 1034 | -10/Materials | Identified exit to Mines 1035 | -10/Materials | Entered Mines 1037 | -10/Mines | Reached level 2 1049 | -10/Mines | Met a Derelict bent on vengeance 1134 | -10/Mines | Learned location of Mines (-9) 1193 | -10/Mines | Upgraded with Utility slot (x1) 1464 | -10/Mines | Discovered exit to Materials (range 12) 1502 | -10/Mines | Build established: Scavenger-Mutant 1577 | -10/Mines | Reached level 3 1603 | -10/Mines | Upgraded with Utility slot (x1) 1807 | -10/Mines | Discovered exit to Materials (range 4) 1839 | -10/Mines | Deemed a non-threat by the Exiles lab entrance 1840 | -10/Mines | Discovered new exit (range 5) 1843 | -10/Mines | Identified exit to Exiles 1844 | -10/Mines | Entered Exiles 1844 | -10/Exiles | Found Exiles lab abandoned 1860 | -10/Exiles | Discovered new exit (range 14) 1871 | -10/Exiles | Identified exit to Mines 2282 | -10/Exiles | Discovered exit to Mines (range 14) 2293 | -10/Exiles | Entered Mines 2415 | -9/Mines | Learned location of Zion (-6) 2478 | -9/Mines | Discovered new exit (range 15) 2491 | -9/Mines | Identified exit to Materials 2823 | -9/Mines | Discovered exit to Materials (range 8) 2824 | -9/Mines | Reached level 4 2859 | -9/Mines | Entered Materials 2861 | -8/Materials | Reached level 5 2861 | -8/Materials | Reached level 6 2985 | -8/Materials | Upgraded with Power slot (x1) 2985 | -8/Materials | Upgraded with Utility slot (x1) 3015 | -8/Materials | Reached level 7 3029 | -8/Materials | Core integrity fell below 50% 3150 | -8/Materials | Upgraded with Propulsion slot (x1) 3171 | -8/Materials | Build established: Scavenger-Skirmisher 3340 | -8/Materials | Discovered new exit (range 21) 3373 | -8/Materials | Identified exit to Factory 3494 | -8/Materials | Discovered exit to Factory (range 23) 3768 | -8/Materials | Reached level 8 4132 | -8/Materials | Discovered exit to Factory (range 22) 4207 | -8/Materials | Entered Factory 4209 | -7/Factory | Reached level 9 4209 | -7/Factory | Reached level 10 4215 | -7/Factory | Discovered new exit (range 21) 4341 | -7/Factory | Identified exit to Lower Caves 4357 | -7/Factory | Upgraded with Propulsion slot (x1) 4515 | -7/Factory | Reached level 11 4695 | -7/Factory | Build established: Skirmisher 4764 | -7/Factory | Discovered new exit (range 24) 4820 | -7/Factory | Identified exit to Factory 4863 | -7/Factory | Sucked down chute 4863 | -7/Factory | Entered Waste 4883 | -7/Waste | Spotted C-40 Crusher 4940 | -7/Waste | Spotted C-40 Crusher 4949 | -7/Waste | Crushed by Compactor (1 part destroyed, 2 dropped) 4959 | -7/Waste | Spotted C-40 Crusher 4996 | -7/Waste | Spotted C-40 Crusher 5001 | -7/Waste | Discovered new exit (range 24) 5025 | -7/Waste | Identified exit to Factory 5026 | -7/Waste | Entered Factory 5879 | -7/Factory | Discovered new exit (range 18) 5926 | -7/Factory | Identified exit to Storage 5927 | -7/Factory | Entered Storage 5929 | -7/Storage | Reached level 12 5993 | -7/Storage | Upgraded with Utility slot (x1) 6005 | -7/Storage | Assisted by bots powering up and referring to "LRC-V3" 6032 | -7/Storage | Reached level 13 6119 | -7/Storage | Upgraded with Weapon slot (x1) 6219 | -7/Storage | Reached level 14 6463 | -7/Storage | Build established: Scavenger-Skirmisher 6777 | -7/Storage | Discovered exit to Factory (range 21) 6814 | -7/Storage | Garrison activated, responded to threat 6825 | -7/Storage | Reached level 15 6875 | -7/Storage | Entered Factory 6877 | -6/Factory | Reached level 16 6893 | -6/Factory | Discovered new exit (range 17) 6991 | -6/Factory | Identified exit to Factory 7004 | -6/Factory | Upgraded with Utility slot (x1) 7004 | -6/Factory | Upgraded with Weapon slot (x1) 7059 | -6/Factory | Discovered exit to Factory (range 19) 7470 | -6/Factory | Discovered new exit (range 17) 7560 | -6/Factory | Build established: Skirmisher 7763 | -6/Factory | Identified exit to Lower Caves 7766 | -6/Factory | Entered Lower Caves 7827 | -6/Lower Caves | Reached level 17 8092 | -6/Lower Caves | Attracted the attention of an 0b10 checkpoint 8195 | -6/Lower Caves | Learned location of 1 exit from Proximity Caves 8284 | -6/Lower Caves | Identified exit to Lower Caves 8310 | -6/Lower Caves | Attracted the attention of an 0b10 base 8336 | -6/Lower Caves | Reached level 18 8368 | -6/Lower Caves | Learned Factory stockpile data 8368 | -6/Lower Caves | Learned Armory terminal intel 8370 | -6/Lower Caves | Destroyed 10 combat bots 8480 | -6/Lower Caves | Encountered a Warlord checkpoint 8867 | -6/Lower Caves | Upgraded with Power slot (x1) 8867 | -6/Lower Caves | Entered another Lower Caves area 8928 | -6/Lower Caves | Learned Armory security intel 8928 | -6/Lower Caves | Learned Factory terminal intel 9075 | -6/Lower Caves | Discovered exit to Factory (range 13) 9107 | -6/Lower Caves | Encountered a Warlord checkpoint 9118 | -6/Lower Caves | Learned 4 Factory zone layouts 9158 | -6/Lower Caves | Build established: Generator-Skirmisher 9365 | -6/Lower Caves | Discovered new exit (range 22) 9420 | -6/Lower Caves | Identified exit to Zion 9570 | -6/Lower Caves | Entered Zion 9655 | -6/Zion | Discovered new exit (range 24) 9699 | -6/Zion | Identified exit to Proximity Caves 9814 | -6/Zion | Learned 4 Factory zone layouts 10067 | -6/Zion | Found Prototype Device 10077 | -6/Zion | Identified Phasing AFG 10116 | -6/Zion | Given A8's code to call for help 10216 | -6/Zion | Imprinted 10218 | -6/Zion | Declared Zion's savior 10355 | -6/Zion | Learned Factory emergency access door positions 10459 | -6/Zion | Found Prototype Energy Gun 10471 | -6/Zion | Identified Storm Laser 10516 | -6/Zion | Build established: Messiah-Skirmisher 10535 | -6/Zion | Received a visual enhancement algorithm 10594 | -6/Zion | Discovered new exit (range 12) 10694 | -6/Zion | Found Prototype Launcher 10742 | -6/Zion | Identified Gui. Missile Launcher 10840 | -6/Zion | Learned location of Armory (-3) 11445 | -6/Zion | Entered Proximity Caves 11445 | -5/Proximity Caves | Accompanied by 4 allies 11447 | -5/Proximity Caves | Reached level 19 11549 | -5/Proximity Caves | Learned location of Warlord (-5) 11674 | -5/Proximity Caves | Learned Factory terminal intel 11692 | -5/Proximity Caves | Spotted B-75 Beast 11701 | -5/Proximity Caves | Destroyed B-75 Beast 12398 | -5/Proximity Caves | Entered Factory 12398 | -5/Factory | Accompanied by 4 allies 12399 | -5/Factory | Identified exit to Extension 12399 | -5/Factory | Identified exit to Upper Caves 12400 | -5/Factory | Reached level 20 12402 | -5/Factory | Loaded intel: 21 terminal locations 12538 | -5/Factory | Reached level 21 12650 | -5/Factory | Upgraded with Utility slot (x1) 12650 | -5/Factory | Upgraded with Weapon slot (x1) 12902 | -5/Factory | Destroyed 9 combat bots 12913 | -5/Factory | Garrison activated, responded to threat 12983 | -5/Factory | Reached level 22 12995 | -5/Factory | Retrieved Zion intel report: Depthwide Sectors/0 12998 | -5/Factory | First assault squad dispatched 13119 | -5/Factory | Discovered exit to Extension (range 20) 13241 | -5/Factory | Destroyed 9 combat bots 13311 | -5/Factory | Entered Extension 13409 | -5/Extension | Retrieved Zion intel report: Branch Access 13409 | -5/Extension | Identified exit to Cetus 13517 | -5/Extension | Retrieved Zion intel report: Component Stockpiles 13575 | -5/Extension | Build established: Messiah-Tank 13730 | -5/Extension | Spotted B-75 Beast 13734 | -5/Extension | Discovered new exit (range 23) 13741 | -5/Extension | Destroyed B-75 Beast 13747 | -5/Extension | Spotted B-75 Beast 13752 | -5/Extension | Destroyed B-75 Beast 13991 | -5/Extension | Discovered new exit (range 21) 14413 | -5/Extension | Identified exit to Factory 14418 | -5/Extension | Entered Cetus 14420 | -5/Cetus | Reached level 23 14436 | -5/Cetus | Spotted Cetus Guard 14436 | -5/Cetus | Spotted Cetus Guard 14436 | -5/Cetus | Spotted Cetus Guard 14436 | -5/Cetus | Spotted Cetus Guard 14444 | -5/Cetus | Destroyed Cetus Guard 14449 | -5/Cetus | Destroyed Cetus Guard 14461 | -5/Cetus | Destroyed Cetus Guard 14470 | -5/Cetus | Destroyed Cetus Guard 14564 | -5/Cetus | Build established: Messiah-Skirmisher 14570 | -5/Cetus | Core integrity fell below 50% 14596 | -5/Cetus | Destroyed 7 combat bots 14706 | -5/Cetus | Discovered exit to Factory (range 22) 14967 | -5/Cetus | Discovered new exit (range 22) 15005 | -5/Cetus | Identified exit to Archives 15034 | -5/Cetus | Spotted Cetus Guard 15037 | -5/Cetus | Spotted Cetus Guard 15037 | -5/Cetus | Spotted Cetus Guard 15037 | -5/Cetus | Spotted Cetus Guard 15041 | -5/Cetus | Discovered exit to Factory (range 22) 15057 | -5/Cetus | Destroyed Cetus Guard 15060 | -5/Cetus | Destroyed Cetus Guard 15065 | -5/Cetus | Destroyed Cetus Guard 15068 | -5/Cetus | Destroyed Cetus Guard 15091 | -5/Cetus | Scared off Revision 17 15225 | -5/Cetus | Entered Archives 15274 | -5/Archives | Discovered new exit (range 24) 15330 | -5/Archives | Discovered exit to Factory (range 20) 15375 | -5/Archives | Unable to access archive contents 15391 | -5/Archives | Unable to access archive contents 15417 | -5/Archives | Identified exit to Hub_04(d) 15439 | -5/Archives | Discovered exit to Hub_04(d) (range 24) 15455 | -5/Archives | Unable to access archive contents 15471 | -5/Archives | Unable to access archive contents 15497 | -5/Archives | Entered Hub_04(d) 15687 | -5/Hub_04(d) | Discovered exit to Factory (range 24) 15831 | -5/Hub_04(d) | Garrison activated, responded to threat 16005 | -5/Hub_04(d) | Retrieved Zion intel report: Branch Access 16018 | -5/Hub_04(d) | Discovered exit to Factory (range 24) 16055 | -5/Hub_04(d) | Reached level 24 16069 | -5/Hub_04(d) | Retrieved Zion intel report: Prototype Schematics 16077 | -5/Hub_04(d) | Entered Factory 16078 | -4/Factory | Loaded intel: 20 terminal locations 16436 | -4/Factory | Zion Light squad teleported in 16485 | -4/Factory | Reached level 25 16551 | -4/Factory | Spotted B-86 Titan 16577 | -4/Factory | First assault squad dispatched 16583 | -4/Factory | Destroyed B-86 Titan 16684 | -4/Factory | Found Prototype Protection 16709 | -4/Factory | Identified Zio. Weapon Casing 16985 | -4/Factory | Core integrity fell below 50% 16991 | -4/Factory | Core integrity fell below 20% 17000 | -4/Factory | Crushed by falling debris 17000 | -4/Factory | Smashed by cave-in Last Messages --------------- Penetrated by Slug. L-61 Swordsman heat damages Adv. Melee Analysis Suite. Melted Flexi-carbon Leg. L-61 Swordsman destroyed. Slug penetrates Wall. Slug penetrates G-67 Veteran. Slug penetrates Subcomponent Replicator. Slug penetrates Wall. Destroyed Flexi-carbon Leg. Power Sword melted. Microactuators melted. L-61 Swordsman destroyed. Penetrated by Slug. Slug penetrates Wall. Slug penetrates G-73 Enforcer. Slug penetrates Wall. The unstable cave ceiling collapses. Crushed by falling debris. [Achievement: This Is Interesting...] [Achievement: Torch] Map ----- +----------------------------------------------------+ | | | | | | | | | | | | | | | | | | | | | | | | | | | | | | | ################################################## | | ## ####################### * | | ## """" """" """" ####### ####### """ ! | | ## """" """" """" ####### ####### "Y" | | ## """" """" """" ####### #^^ # | | ## """" """" """" ####### #^^ ###+###### | | ## """" """" """" ####### + ###### | | ## """" """" """" ####### """ # ### | | ## """" """" """" ####### """"" # ### | | ## ####### """"" # """" # | | ##########+##############@######### """" # | | ####### "###########l######## """" + | | # # ] gggg m ## """" # | | """"" # # h g ## """" # | | # # %%= ## """" # | | """"" + "+%h i " " """ ## A """" # | | # # """ " """ ## #### | | """"" + # "" " " ## #### | | # # " ## #### | | ####### ##"##+############## #### | | % #### | | #### | | #### | | #### | | "T" #### | | #### | | = #### | | ? ####+################ ################### | | ? ## ##### # ! !############# | | # """ """ """ ##### #^ ############# | | ? # "Y" """ """ ##### + " " ############# | | ?? # " " """ """ ##### # " " ############# | | ? ? ? # ##### # " " # ### | | ??? # ##### # " " # "" "" ### | | ???? #################### # " " # "" "" ### | +----------------------------------------------------+ Best States ------------- Heat Dissipation 170 Energy Generation 85 Energy Capacity 1190 Matter Stores 496 Matter Capacity 500 Sight Range 23 Robot Scan Range 30 Terrain Scan Range 24 Terrain Scan Density 1010 Armor Coverage 225 Resistance: KI 40 Resistance: TH 35 Resistance: EX 35 Resistance: EM 20 Resistance: I 20 Resistance: S 20 Resistance: P 20 Weapon Cycling 20 Phase Shifting 5 Evasion (%) 45 Recoil Reduction 4 Particle Charging 20 Offensive Hacking 10 Item Schematics ----------------- Gauss Rifle | -8/Materials | Scanalyzed Component Analysis Suite | -8/Materials | Scanalyzed Com. Matter Pod | -8/Materials | Scanalyzed Imp. Heat Sink | -8/Materials | Scanalyzed Riot Gun | -6/Zion | Free Battle Cannon | -6/Zion | Free Bore Cannon | -6/Zion | Free Imp. Lightning Gun | -5/Hub_04(d) | Z-intel Cld. Plasma Rifle | -5/Hub_04(d) | Z-intel Ionic Axe | -5/Hub_04(d) | Z-intel Com. Ion Cannon | -5/Hub_04(d) | Z-intel Imp. Cesium-ion Thruster | -5/Hub_04(d) | Z-intel Adv. Power Amplifier | -5/Hub_04(d) | Z-intel Imp. Energy Well | -5/Hub_04(d) | Z-intel Imp. Heavy Laser | -5/Hub_04(d) | Z-intel Exp. Heat Sink | -5/Hub_04(d) | Z-intel Cld. Aerolev Unit | -5/Hub_04(d) | Z-intel Gui. EMP Blaster | -5/Hub_04(d) | Z-intel Robot Schematics ------------------ None Fabricated ------------ Nothing Alien Tech Used ----------------- None Achievements -------------- Left-hand Path Prolific Hacker Revising The Future This Is Interesting... Torch Challenges ------------ None RPGLIKE | -11 -10 -10 -10 -9 -8 -7 -7 -7 -7 -6 -6 -6 -6 -5 -5 -5 -5 -5 -5 -4 --------- Run | Scr Mat Min Exi Min Mat Fac Was Fac Sto Fac Low Low Zio Pro Fac Ext Cet Arc Hub Fac Levels Raised 24 | . . 2 . 1 4 3 . . 4 1 2 . . 1 3 . 1 . 1 1 XP Earned 40597 | 4000 970 2500 200 1338 6941 3673 200 645 4574 2285 2510 700 388 1360 3591 992 853 210 576 2091 XP Spent 39950 | 3980 . 3015 . 1000 6460 3000 . . 4520 4525 3000 . . . 5970 . 1480 . . 3000 Upgrades 87 | 11 . 6 . 1 20 7 . . 9 4 9 . . . 9 . 4 . . 7 Power Slot 2 | . . . . . 1 . . . . . 1 . . . . . . . . . Propulsion Slot 3 | 1 . . . . 1 1 . . . . . . . . . . . . . . Utility Slot 8 | 2 . 2 . . 1 . . . 1 1 . . . . 1 . . . . . Weapon Slot 4 | 1 . . . . . . . . 1 1 . . . . 1 . . . . . Core Integrity 6 | 2 . . . . 2 . . . 1 1 . . . . . . . . . . Heat Dissipation 21 | 2 . 1 . . 1 3 . . 3 . 5 . . . 4 . 2 . . . Energy Generation 4 | . . 1 . . . 2 . . . 1 . . . . . . . . . . Energy Storage 1 | . . . . . . . . . . . 1 . . . . . . . . . Mass Support 5 | . . . . . 3 . . . . . 1 . . . . . 1 . . . Inventory Capacity 5 | 3 . . . 1 1 . . . . . . . . . . . . . . . Sight Range 1 | . . . . . . . . . . . . . . . . . 1 . . . Sensor Range 5 | . . 2 . . . 1 . . 1 . 1 . . . . . . . . . Terrain Scan Density 10 | . . . . . 10 . . . . . . . . . . . . . . . Ranged Accuracy 2 | . . . . . . . . . 2 . . . . . . . . . . . KI Resistance % 4 | . . . . . . . . . . . . . . . 1 . . . . 3 TH Resistance % 3 | . . . . . . . . . . . . . . . 1 . . . . 2 EX Resistance % 3 | . . . . . . . . . . . . . . . 1 . . . . 2 Protomatter Created 5739 | . 194 230 . 25 507 267 . . 671 124 615 107 . . 957 399 535 80 387 641 Integrity Restored 9178 | . 238 503 . 74 861 630 . . 1085 90 1071 142 . . 1156 484 1003 237 981 623 Core 6180 | . 211 343 . 62 591 450 . . 626 77 851 109 . . 840 399 941 85 289 306 Parts 2998 | . 27 160 . 12 270 180 . . 459 13 220 33 . . 316 85 62 152 692 317 Protomatter Decayed 2816 | . 113 56 . . 216 43 . . 439 92 246 124 . . 575 231 200 . 55 426 Game ------ Seed ThrusterDerelictWarhead Manual? 0 Play Time 03:26:43 Cumulative 27.1 hours Start 2020.01.01 @ 08:48:55 End 2020.01.01 @ 12:26:14 Sessions 1 Manual Loads 0 Difficulty Adventurer Special Mode Winter2019/RPGLIKE Game No. 21 Rogue 12 Adventurer 9 Explorer 0 Win Type - Total 0 Types 0/0/0/0/0/0/0 Lore% 27 Gallery% 28 Achievement% 28 Wizard Run 0 Options --------- ASCII 0 Keyboard 0 Movement Mouse Keybinds 0 Fullscreen 1 Font 18/SmallcapsGlow Map View 76x50 Tactical HUD 0 Map Filters NONE Filters NONE Steam 1 RUN: 895b97e6-5f27-4d2c-8949-2b66344bddff